bitfinex-derivatives/quotes_BTCF0:USTF0_20250902
["timestamp","ask_amount","ask_price","bid_price","bid_amount"]
[1756815720883,0.3608,109600.0,109590.0,1.07716]
[1756815721187,0.3608,109600.0,109590.0,1.1426288]
[1756815721382,0.38138873,109610.0,109590.0,1.51131995]
[1756815721683,0.3608,109600.0,109590.0,1.51131995]
[1756815721886,0.3608,109600.0,109590.0,1.1426288]
[1756815722684,0.3608,109600.0,109590.0,0.2783888]
[1756815722981,0.3608,109600.0,109590.0,0.42749]
[1756815723286,0.3618,109600.0,109590.0,0.42749]
[1756815723787,0.3618,109600.0,109590.0,0.46292]
[1756815724191,0.36322,109600.0,109590.0,0.46264]
[1756815724495,0.984,109600.0,109580.0,0.0654688]
[1756815724691,0.36172,109590.0,109580.0,0.04749]
[1756815724985,0.00092,109580.0,109570.0,0.94696]
[1756815725176,0.3615,109580.0,109570.0,0.94696]
[1756815725377,0.36115,109580.0,109570.0,0.94696]
[1756815725577,0.3608,109580.0,109570.0,0.94696]
[1756815726189,0.38101714,109590.0,109580.0,0.03501]
[1756815726190,0.38171714,109590.0,109580.0,0.03501]
[1756815726391,0.38171714,109590.0,109580.0,0.08211]
[1756815728280,0.38271714,109590.0,109580.0,0.08211]
[1756815728681,0.00092,109580.0,109570.0,0.94615]
[1756815728988,0.38179714,109590.0,109580.0,0.08211]
[1756815729288,0.38179714,109590.0,109580.0,0.45080115]
[1756815729687,0.38179714,109590.0,109580.0,0.70080115]
[1756815729688,0.02099714,109590.0,109580.0,0.70080115]
[1756815729990,0.02099714,109590.0,109580.0,0.82080115]
[1756815730385,0.02099714,109590.0,109580.0,0.88626995]
[1756815730585,0.02099714,109590.0,109580.0,0.76626995]
[1756815730787,0.38214714,109590.0,109580.0,0.88626995]
[1756815731086,0.38171714,109590.0,109580.0,1.06507]
[1756815731683,0.38171714,109590.0,109580.0,0.08211]
[1756815731887,0.38171714,109590.0,109580.0,0.08411]
[1756815732194,1.33040829,109590.0,109580.0,0.002]
[1756815732786,0.63171714,109590.0,109580.0,0.08411]
[1756815734087,0.63171714,109590.0,109580.0,0.08211]
[1756815734285,0.63371714,109590.0,109580.0,0.08211]
[1756815734897,0.63471714,109590.0,109580.0,0.08211]
[1756815735892,0.38471714,109590.0,109580.0,0.08211]
[1756815736196,0.38471714,109590.0,109580.0,0.20211]
[1756815736890,0.38471714,109590.0,109580.0,0.12]
[1756815737083,0.63471714,109590.0,109580.0,0.12]
[1756815737592,0.63371714,109590.0,109580.0,0.1671]
[1756815737904,0.63271714,109590.0,109580.0,0.20211]
[1756815738099,0.63271714,109590.0,109580.0,0.1671]
[1756815738489,0.63371714,109590.0,109580.0,0.12]
[1756815738689,0.63371714,109590.0,109580.0,0.1671]
[1756815738890,0.63571714,109590.0,109580.0,0.1671]
[1756815739094,0.63571714,109590.0,109580.0,0.16702]
[1756815739590,0.63571714,109590.0,109580.0,0.0471]
[1756815739796,0.00092,109580.0,109570.0,0.1475788]
[1756815740097,0.36172,109580.0,109570.0,0.0227]
[1756815740294,0.36172,109580.0,109560.0,0.11923231]
[1756815740599,0.36172,109570.0,109560.0,0.10086351]
[1756815741998,0.36172,109570.0,109560.0,0.10286351]
[1756815742198,0.36172,109570.0,109560.0,0.02075351]
[1756815742394,0.67172,109570.0,109560.0,0.02075351]
[1756815742591,0.68172,109570.0,109560.0,0.02075351]
[1756815742889,0.68172,109570.0,109560.0,0.01875351]
[1756815743487,0.36172,109570.0,109560.0,0.01875351]
[1756815743888,0.36272,109570.0,109560.0,0.01875351]
[1756815745393,1.07141115,109570.0,109560.0,4e-05]
[1756815745593,2.18313115,109570.0,109560.0,4e-05]
[1756815745993,0.00076,109550.0,109540.0,0.06565842]
[1756815746192,0.72236,109550.0,109540.0,0.06565842]
[1756815746390,1.07236,109550.0,109540.0,0.06565842]
[1756815746698,1.93372,109550.0,109540.0,0.01855842]
[1756815746901,1.07236,109550.0,109540.0,0.04125842]
[1756815747197,1.07236,109550.0,109540.0,0.06565842]
[1756815747398,1.0813427,109550.0,109540.0,0.06665842]
[1756815747795,0.7313427,109550.0,109540.0,0.10166842]
[1756815748799,0.7313427,109550.0,109540.0,0.72335957]
[1756815748800,0.3697827,109550.0,109540.0,0.72335957]
[1756815748997,0.3697827,109550.0,109540.0,0.84335957]
[1756815749497,0.36098,109570.0,109550.0,0.09646]
[1756815749801,0.70156,109570.0,109560.0,0.08211]
[1756815750098,0.70156,109570.0,109560.0,0.21211]
[1756815750494,0.70156,109570.0,109560.0,0.22211]
[1756815750687,0.34,109570.0,109560.0,0.84080115]
[1756815751090,0.06,109570.0,109560.0,0.84080115]
[1756815751291,0.06,109570.0,109560.0,0.5375788]
[1756815751486,0.06,109570.0,109560.0,0.90885253]
[1756815751897,0.061,109570.0,109560.0,0.90885253]
[1756815752401,0.061,109570.0,109560.0,0.76885253]
[1756815752589,0.07036605,109570.0,109560.0,0.76885253]
[1756815752789,0.07054605,109570.0,109560.0,0.76885253]
[1756815752999,0.07036605,109570.0,109560.0,0.76885253]
[1756815753694,0.07036605,109570.0,109560.0,0.77085253]
[1756815753901,0.07083605,109570.0,109560.0,0.3995788]
[1756815754098,0.07083605,109570.0,109560.0,0.77077253]
[1756815754299,0.06983605,109570.0,109560.0,0.77077253]
[1756815754603,0.06965605,109570.0,109560.0,0.77077253]
[1756815754903,0.07004605,109570.0,109560.0,0.0491]
[1756815755093,1.10211978,109570.0,109560.0,0.002]
[1756815755295,0.74211978,109570.0,109560.0,0.0247]
[1756815755496,1.12211978,109570.0,109560.0,0.0491]
[1756815755696,1.37211978,109570.0,109560.0,0.0247]
[1756815755891,2.23331978,109570.0,109560.0,0.0247]
[1756815756096,1.86204605,109570.0,109560.0,0.0247]
[1756815756298,1.86404605,109570.0,109560.0,0.0227]
[1756815756604,1.86404605,109570.0,109550.0,0.04936]
[1756815756793,0.3619,109560.0,109550.0,0.09834]
[1756815757199,0.43366353,109560.0,109550.0,0.09834]
[1756815757401,0.43366353,109560.0,109550.0,0.04898]
[1756815757709,0.79366353,109560.0,109550.0,0.04898]
[1756815758004,0.43366353,109560.0,109550.0,0.08399]
[1756815758702,0.68366353,109560.0,109550.0,0.02481]
[1756815759009,0.0011,109550.0,109540.0,0.08399]
[1756815759307,0.43256353,109560.0,109550.0,0.08415]
[1756815759605,0.43256353,109560.0,109550.0,0.04914]
[1756815759903,1.42383726,109560.0,109550.0,0.00016]
[1756815760399,1.05256353,109560.0,109550.0,0.00016]
[1756815760706,1.91688353,109560.0,109550.0,0.02497]
[1756815762406,2.64895726,109560.0,109550.0,0.00016]
[1756815765106,3.04075288,109560.0,109550.0,0.00016]
[1756815765411,3.06140991,109560.0,109550.0,0.00016]
[1756815766000,2.68933618,109560.0,109550.0,0.00016]
[1756815766200,1.82581618,109560.0,109550.0,0.00016]
[1756815766509,2.68937618,109560.0,109550.0,0.00016]
[1756815767104,2.68937618,109560.0,109550.0,0.0002]
[1756815767303,2.68917618,109560.0,109550.0,0.0002]
[1756815768601,3.06044991,109560.0,109550.0,0.0002]
[1756815768908,3.06044991,109560.0,109520.0,0.08399]
[1756815769103,0.3608,109530.0,109520.0,0.08399]
[1756815769313,1.22384,109530.0,109520.0,0.08395]
[1756815770514,1.22484,109530.0,109520.0,0.08895]
[1756815771311,1.22484,109530.0,109520.0,0.09195]
[1756815774108,1.22428,109530.0,109520.0,0.71322373]
[1756815774310,0.001,109530.0,109520.0,0.71322373]
[1756815774510,0.001,109530.0,109520.0,1.55579526]
[1756815774716,0.001,109530.0,109520.0,2.48370406]
[1756815775209,0.001,109530.0,109520.0,2.84450406]
[1756815775416,0.001,109530.0,109520.0,2.99350239]
[1756815775609,0.001,109530.0,109520.0,2.31632046]
[1756815775917,0.001,109530.0,109520.0,2.59085166]
[1756815776814,0.001,109530.0,109520.0,1.6764878]
[1756815777022,0.001,109530.0,109520.0,1.38841166]
[1756815777226,0.001,109530.0,109520.0,2.56037166]
[1756815777422,0.001,109530.0,109520.0,2.04752507]
[1756815778535,0.001,109530.0,109520.0,1.09426727]
[1756815778716,0.001,109530.0,109520.0,1.75341226]
[1756815778921,0.001,109530.0,109520.0,1.02101499]
[1756815780529,0.001,109530.0,109520.0,1.39253226]
[1756815783235,0.3618,109530.0,109520.0,0.15745499]
[1756815784331,0.3618,109530.0,109520.0,0.52897226]
[1756815784521,0.001,109530.0,109520.0,0.52885226]
[1756815785132,0.3618,109530.0,109520.0,0.52885226]
[1756815788635,0.001,109530.0,109520.0,0.52885226]
[1756815788834,0.001,109530.0,109520.0,0.65885226]
[1756815789340,0.001,109530.0,109520.0,1.01965226]
[1756815789837,0.001,109530.0,109520.0,0.95414727]
[1756815790034,0.001,109530.0,109520.0,0.65898757]
[1756815790537,0.001,109530.0,109520.0,1.1489903]
[1756815792644,0.001,109530.0,109520.0,0.2874703]
[1756815792841,0.3618,109530.0,109520.0,1.1488703]
[1756815793338,0.3618,109530.0,109520.0,1.0186703]
[1756815793637,0.3618,109530.0,109520.0,0.1574703]
[1756815794138,0.73331727,109530.0,109520.0,0.1574703]
[1756815794735,1.30331727,109530.0,109520.0,0.1226203]
[1756815794932,1.36331727,109530.0,109520.0,0.05698]
[1756815795530,1.31331727,109530.0,109520.0,0.09094]
[1756815797142,1.31331727,109530.0,109520.0,0.05698]
[1756815797540,1.53654988,109530.0,109520.0,0.008]
[1756815797739,1.53654988,109530.0,109520.0,0.03208]
[1756815798841,1.53654988,109530.0,109520.0,0.008]
[1756815799441,1.84949494,109530.0,109520.0,0.38839494]
[1756815799635,1.84949494,109530.0,109520.0,0.09102]
[1756815800237,1.84849494,109530.0,109520.0,0.08702]
[1756815801343,1.84849494,109530.0,109520.0,0.08502]
[1756815801541,1.55112,109530.0,109520.0,0.08502]
[1756815801843,1.92282293,109530.0,109520.0,0.05106]
[1756815802033,1.92282293,109530.0,109520.0,0.002]
[1756815802236,2.17282293,109530.0,109520.0,0.002]
[1756815802435,2.17282293,109530.0,109520.0,0.001]
[1756815803345,1.80112,109530.0,109520.0,0.001]
[1756815803645,1.80012,109530.0,109520.0,0.08402]
[1756815803849,2.17182293,109530.0,109520.0,0.08402]
[1756815804345,2.17182293,109530.0,109520.0,0.001]
[1756815806139,2.54352586,109530.0,109520.0,0.001]
[1756815806650,2.17182293,109530.0,109520.0,0.001]
[1756815808240,1.31250293,109530.0,109520.0,0.001]
[1756815808441,2.17222293,109530.0,109520.0,0.001]
[1756815809352,2.17206293,109530.0,109520.0,0.001]
[1756815809650,1.31250293,109530.0,109520.0,0.001]
[1756815809849,2.17198293,109530.0,109520.0,0.001]
[1756815810350,1.31250293,109530.0,109520.0,0.001]
[1756815810554,2.17190293,109530.0,109520.0,0.001]
[1756815810739,1.31250293,109530.0,109520.0,0.001]
[1756815810947,1.54976,109530.0,109520.0,0.08402]
[1756815811143,1.92146293,109530.0,109520.0,0.08402]
[1756815811846,1.92190293,109530.0,109520.0,0.08402]
[1756815812352,1.92190293,109530.0,109520.0,0.001]
[1756815812552,1.5502,109530.0,109520.0,0.001]
[1756815812752,1.92190293,109530.0,109520.0,0.001]
[1756815813452,1.91949353,109530.0,109520.0,0.001]
[1756815813759,1.5502,109530.0,109520.0,0.001]
[1756815813945,1.91949353,109530.0,109520.0,0.001]
[1756815814144,2.16949353,109530.0,109520.0,0.001]
[1756815819556,2.19002073,109530.0,109500.0,4e-05]
[1756815819748,1.09089353,109510.0,109500.0,4e-05]
[1756815819944,2.27953353,109510.0,109500.0,0.04787]
[1756815820243,1.42089353,109510.0,109500.0,0.09897]
[1756815820450,1.0516,109510.0,109500.0,0.34897]
[1756815820645,0.7108,109510.0,109500.0,0.34897]
[1756815820847,0.4608,109510.0,109500.0,0.34897]
[1756815821048,0.3608,109510.0,109500.0,0.34897]
[1756815821258,0.6008,109510.0,109500.0,0.34897]
[1756815821469,0.6008,109510.0,109500.0,0.71397934]
[1756815821850,0.01,109510.0,109500.0,0.76851364]
[1756815822049,0.34,109510.0,109500.0,0.80529364]
[1756815822553,0.34,109510.0,109500.0,0.4196103]
[1756815822950,0.7008,109510.0,109500.0,0.4196103]
[1756815823150,0.34,109510.0,109500.0,0.4196103]
[1756815824763,0.34,109510.0,109500.0,1.23017361]
[1756815825057,0.38151666,109540.0,109500.0,1.60986761]
[1756815825257,1.58015666,109540.0,109510.0,1.79346091]
[1756815825458,1.58015666,109540.0,109510.0,1.93346091]
[1756815825849,1.58015666,109540.0,109530.0,0.04783]
[1756815826046,1.58015666,109540.0,109530.0,0.08461]
[1756815827462,0.72151666,109540.0,109530.0,0.08461]
[1756815827655,1.58215666,109540.0,109530.0,0.08461]
[1756815828660,1.58315666,109540.0,109530.0,0.08461]
[1756815830458,1.58315666,109540.0,109530.0,0.04783]
[1756815831161,1.95240567,109540.0,109530.0,0.08461]
[1756815832062,1.58315666,109540.0,109530.0,0.08461]
[1756815832363,0.72451666,109540.0,109530.0,0.20461]
[1756815832662,1.58307666,109540.0,109530.0,0.08461]
[1756815833560,1.58307666,109540.0,109530.0,0.04783]
[1756815833762,1.58307666,109540.0,109520.0,0.150247]
[1756815833962,1.58307666,109540.0,109520.0,0.113467]
[1756815834162,1.95232567,109540.0,109530.0,0.08461]
[1756815834867,1.95232567,109540.0,109530.0,0.04783]
[1756815835059,1.95132567,109540.0,109530.0,0.04783]
[1756815835560,2.20132567,109540.0,109520.0,0.113467]
[1756815835759,0.73004901,109530.0,109510.0,0.150247]
[1756815835960,0.3608,109520.0,109510.0,0.150247]
[1756815836160,0.3608,109520.0,109510.0,0.113467]
[1756815836365,0.3708,109520.0,109510.0,0.04783]
[1756815836762,0.7408,109520.0,109510.0,0.04783]
[1756815836960,0.7408,109520.0,109510.0,0.08461]
[1756815837666,0.3708,109520.0,109510.0,0.08461]
[1756815838170,1.22928,109520.0,109510.0,0.08461]
[1756815838366,1.22928,109520.0,109510.0,0.08661]
[1756815838561,1.22928,109520.0,109510.0,0.08761]
[1756815839764,0.3708,109520.0,109510.0,0.08761]
[1756815839965,0.7008,109520.0,109510.0,0.003]
[1756815840165,1.07004901,109520.0,109510.0,0.003]
[1756815840570,1.32004901,109520.0,109510.0,0.003]
[1756815844073,1.32004901,109520.0,109510.0,0.00292]
[1756815846271,1.34053979,109520.0,109510.0,0.00292]
[1756815847678,2.19897979,109520.0,109510.0,0.00292]
[1756815848567,2.19897979,109520.0,109500.0,4e-05]
[1756815848568,1.82973078,109520.0,109500.0,4e-05]
[1756815848775,0.73004901,109510.0,109500.0,4e-05]
[1756815849078,1.1104927,109510.0,109500.0,4e-05]
[1756815849378,1.09002036,109510.0,109470.0,0.08484]
[1756815849573,0.3608,109480.0,109470.0,0.08484]
[1756815849769,1.52928,109480.0,109470.0,0.08484]
[1756815849969,1.94552901,109480.0,109470.0,0.08484]
[1756815850172,1.60552901,109480.0,109470.0,0.08484]
[1756815850382,1.94465524,109480.0,109470.0,0.08484]
[1756815850577,1.94465524,109480.0,109460.0,0.150477]
[1756815850878,0.72204901,109470.0,109460.0,0.08484]
[1756815851078,0.3728,109470.0,109460.0,0.08484]
[1756815851269,0.3708,109470.0,109460.0,0.08484]
[1756815852173,0.3718,109470.0,109460.0,0.004]
[1756815852378,1.07104901,109470.0,109460.0,0.08884]
[1756815852576,1.92956901,109470.0,109460.0,0.08884]
[1756815852778,1.92956901,109470.0,109460.0,0.004]
[1756815853381,2.00434348,109470.0,109460.0,0.004]
[1756815853580,2.00434348,109470.0,109460.0,0.006]
[1756815853969,2.25434348,109470.0,109460.0,0.006]
[1756815854173,2.25934348,109470.0,109460.0,0.005]
[1756815854779,1.39982348,109470.0,109460.0,0.002]
[1756815855084,2.25834348,109470.0,109460.0,0.002]
[1756815855790,2.25934348,109470.0,109460.0,0.001]
[1756815856684,2.26134348,109470.0,109460.0,0.002]
[1756815856982,2.38061987,109470.0,109460.0,0.002]
[1756815857878,2.38069987,109470.0,109460.0,0.002]
[1756815858279,2.37369987,109470.0,109440.0,0.08484]
[1756815858486,0.3598,109450.0,109440.0,0.08484]
[1756815858783,0.36,109450.0,109440.0,0.08484]
[1756815859085,0.7208,109450.0,109440.0,0.08484]
[1756815860584,1.09004901,109450.0,109440.0,0.08484]
[1756815860985,1.09004901,109450.0,109440.0,0.08684]
[1756815861184,1.09604901,109450.0,109440.0,0.08684]
[1756815861688,1.09604901,109450.0,109440.0,0.08484]
[1756815861874,1.09704901,109450.0,109440.0,0.08684]
[1756815862078,0.7278,109450.0,109440.0,0.08684]
[1756815863583,1.02559588,109450.0,109440.0,0.08684]
[1756815864189,1.88423588,109450.0,109440.0,0.08684]
[1756815864579,1.88423588,109450.0,109440.0,0.002]
[1756815865091,2.18203176,109450.0,109440.0,0.002]
[1756815865286,1.88423588,109450.0,109440.0,0.002]
[1756815866087,2.43203176,109450.0,109440.0,0.002]
[1756815867288,2.43103176,109450.0,109440.0,0.003]
[1756815867684,2.13323588,109450.0,109440.0,0.003]
[1756815868188,2.13323588,109450.0,109440.0,0.001]
[1756815868387,1.27459588,109450.0,109440.0,0.001]
[1756815868590,2.13319588,109450.0,109440.0,0.001]
[1756815869184,2.43099176,109450.0,109440.0,0.001]
[1756815869384,2.13319588,109450.0,109440.0,0.001]
[1756815870191,0.9768,109450.0,109440.0,0.001]
[1756815870390,2.13319588,109450.0,109440.0,0.001]
[1756815872488,2.43099176,109450.0,109440.0,0.001]
[1756815873303,2.43099176,109450.0,109420.0,0.08484]
[1756815873599,0.65869805,109430.0,109420.0,0.08484]
[1756815873802,1.85729805,109430.0,109420.0,0.08484]
[1756815874001,1.85729805,109430.0,109420.0,0.08472]
[1756815874994,1.85929805,109430.0,109420.0,0.08572]
[1756815875193,2.1571961,109430.0,109420.0,0.33572]
[1756815875397,2.1571961,109430.0,109420.0,0.35184672]
[1756815875596,1.85929805,109430.0,109420.0,0.35184672]
[1756815875996,1.85929805,109430.0,109420.0,0.33772]
[1756815876392,1.86029805,109430.0,109420.0,0.33772]
[1756815876596,2.1581961,109430.0,109420.0,0.003]
[1756815876807,0.08198,109410.0,109400.0,0.04675]
[1756815877101,0.03412,109400.0,109380.0,0.72433505]
[1756815877401,1.59923805,109400.0,109390.0,0.04675]
[1756815877612,1.94923805,109400.0,109390.0,0.04675]
[1756815877904,1.94923805,109400.0,109390.0,0.29675]
[1756815878098,1.94823805,109400.0,109390.0,0.29675]
[1756815878504,2.25519181,109400.0,109390.0,0.29675]
[1756815878897,2.25815181,109400.0,109390.0,0.3327]
[1756815879503,2.25715181,109400.0,109390.0,0.3327]
[1756815880398,2.25815181,109400.0,109390.0,0.3347]
[1756815881602,2.25815181,109400.0,109390.0,0.29975]
[1756815882105,2.25815181,109400.0,109390.0,0.3347]
[1756815882405,2.25823181,109400.0,109390.0,0.003]
[1756815885909,1.39963181,109400.0,109390.0,0.003]
[1756815886108,1.66239571,109400.0,109390.0,0.04975]
[1756815886308,2.25819181,109400.0,109390.0,0.04975]
[1756815887002,1.39963181,109400.0,109390.0,0.04975]
[1756815887207,2.25819181,109400.0,109390.0,0.04975]
[1756815889008,2.25819181,109400.0,109390.0,0.003]
[1756815889204,1.66239571,109400.0,109390.0,0.02691]
[1756815889404,2.25819181,109400.0,109390.0,0.04975]
[1756815889707,2.25815181,109400.0,109390.0,0.02691]
[1756815890107,2.25815181,109400.0,109390.0,0.04975]
[1756815890305,0.80383571,109400.0,109390.0,0.63259805]
[1756815890501,0.38748571,109400.0,109390.0,0.72400375]
[1756815890806,0.36305571,109400.0,109390.0,0.63259805]
[1756815890998,0.74293376,109400.0,109390.0,0.3347]
[1756815891198,1.10373376,109400.0,109390.0,0.63259805]
[1756815891407,1.40163181,109400.0,109390.0,0.02691]
[1756815892099,1.40163181,109400.0,109390.0,0.04975]
[1756815893710,1.40163181,109400.0,109390.0,0.02691]
[1756815893909,1.40163181,109400.0,109390.0,0.0847]
[1756815894111,1.40163181,109400.0,109390.0,0.04975]
[1756815894313,1.40163181,109400.0,109390.0,0.02691]
[1756815894509,1.40163181,109400.0,109390.0,0.04975]
[1756815896314,1.40163181,109400.0,109390.0,0.003]
[1756815896516,0.80583571,109400.0,109390.0,0.38259805]
[1756815896712,1.10373376,109400.0,109390.0,0.63259805]
[1756815896913,1.40163181,109400.0,109390.0,0.3347]
[1756815899119,1.40163181,109400.0,109390.0,0.003]
[1756815899322,1.40163181,109400.0,109390.0,0.02691]
[1756815899512,1.96205376,109400.0,109390.0,0.38259805]
[1756815900514,1.10373376,109400.0,109390.0,0.63259805]
[1756815900716,1.02175376,109400.0,109390.0,0.63259805]
[1756815900917,1.06961376,109400.0,109390.0,0.63259805]
[1756815901615,1.10373376,109400.0,109390.0,0.63259805]
[1756815901823,0.74293376,109400.0,109390.0,0.63259805]
[1756815903513,0.74293376,109400.0,109390.0,0.3347]
[1756815904219,1.04083181,109400.0,109390.0,0.3347]
[1756815904421,1.40163181,109400.0,109390.0,0.003]
[1756815905219,1.40163181,109400.0,109390.0,0.02691]
[1756815905422,1.40163181,109400.0,109390.0,0.04975]
[1756815906427,1.40163181,109400.0,109390.0,0.08625]
[1756815906629,1.10373376,109400.0,109390.0,0.44978505]
[1756815907116,1.10373376,109400.0,109390.0,0.151887]
[1756815907323,1.10373376,109400.0,109390.0,0.44978505]
[1756815908428,0.80583571,109400.0,109390.0,0.44978505]
[1756815908634,1.10373376,109400.0,109390.0,0.44978505]
[1756815909126,0.74293376,109400.0,109390.0,0.44978505]
[1756815909527,1.10373376,109400.0,109390.0,0.44978505]
[1756815909728,0.44503571,109400.0,109390.0,0.44978505]
[1756815909927,0.354,109400.0,109390.0,1.8557631]
[1756815910128,0.014,109400.0,109390.0,1.3057358]
[1756815910325,0.014,109400.0,109390.0,1.9015319]
[1756815910636,0.014,109400.0,109390.0,1.60363385]
[1756815911126,0.014,109400.0,109390.0,1.96443385]
[1756815911525,0.014,109400.0,109390.0,2.25443385]
[1756815911719,0.014,109400.0,109390.0,2.27443385]
[1756815911932,0.014,109400.0,109390.0,2.5723319]
[1756815913627,0.014,109400.0,109390.0,2.34435871]
[1756815913931,0.014,109400.0,109390.0,2.69435871]
[1756815914933,0.014,109400.0,109390.0,2.69419871]
[1756815915134,0.014,109400.0,109390.0,1.83627871]
[1756815915334,0.014,109400.0,109390.0,2.69415871]
[1756815915840,0.014,109400.0,109390.0,2.39626066]
[1756815916333,0.014,109400.0,109390.0,2.39622066]
[1756815916530,0.014,109400.0,109390.0,0.91838066]
[1756815916730,0.05089,109400.0,109390.0,1.77622066]
[1756815917431,0.39668805,109400.0,109390.0,0.38414805]
[1756815917631,0.39668805,109400.0,109390.0,1.24194805]
[1756815917834,0.39668805,109400.0,109390.0,0.74494805]
[1756815918133,0.39668805,109400.0,109390.0,1.60274805]
[1756815918134,0.09879,109400.0,109390.0,1.60274805]
[1756815918334,0.39668805,109400.0,109390.0,1.60274805]
[1756815918527,0.39668805,109400.0,109390.0,0.74494805]
[1756815918726,0.39668805,109400.0,109390.0,1.60274805]
[1756815919128,0.39668805,109400.0,109390.0,1.30485]
[1756815919427,0.39668805,109400.0,109390.0,1.69415385]
[1756815919628,0.09879,109400.0,109390.0,1.77618066]
[1756815919829,0.39668805,109400.0,109390.0,1.77618066]
[1756815920136,0.39668805,109400.0,109390.0,1.69415385]
[1756815920537,0.39668805,109400.0,109390.0,1.70122972]
[1756815920728,0.014,109400.0,109390.0,2.02122972]
[1756815920931,0.004,109400.0,109390.0,2.65115458]
[1756815921236,0.004,109400.0,109390.0,2.68400068]
[1756815921628,0.004,109400.0,109390.0,2.56912777]
[1756815922029,0.0519,109400.0,109390.0,0.54553167]
[1756815922228,0.0519,109400.0,109390.0,0.92553804]
[1756815922430,0.38668805,109400.0,109390.0,1.78317814]
[1756815923024,0.0499,109400.0,109390.0,1.78217814]
[1756815923329,0.38468805,109400.0,109390.0,1.78217814]
[1756815923531,0.34779805,109400.0,109390.0,1.78217814]
[1756815923734,0.08679,109400.0,109390.0,1.78217814]
[1756815924737,0.08579,109400.0,109390.0,1.78017814]
[1756815924937,0.08579,109400.0,109390.0,1.78117814]
[1756815925131,0.003,109400.0,109390.0,1.78117814]
[1756815925438,0.003,109400.0,109390.0,1.48328009]
[1756815925637,0.003,109400.0,109390.0,1.50328009]
[1756815926438,0.003,109400.0,109390.0,1.87575126]
[1756815927939,0.003,109400.0,109390.0,1.85575126]
[1756815928144,0.003,109400.0,109390.0,2.42575126]
[1756815928643,0.003,109400.0,109390.0,2.36194936]
[1756815928833,0.003,109400.0,109390.0,2.47682227]
[1756815929240,0.003,109400.0,109390.0,4.40846227]
[1756815929440,0.00272,109400.0,109390.0,4.40846227]
[1756815931043,0.00272,109400.0,109390.0,3.55082227]
[1756815931242,0.00272,109400.0,109390.0,4.40818227]
[1756815932046,0.00272,109400.0,109390.0,5.04635344]
[1756815932445,0.00272,109400.0,109390.0,4.93148053]
[1756815932648,0.00272,109400.0,109390.0,4.55892936]
[1756815932943,0.00272,109400.0,109390.0,4.67380227]
[1756815933542,0.00272,109400.0,109390.0,4.67110503]
[1756815935652,0.00272,109400.0,109390.0,4.68110503]
[1756815936146,0.00272,109400.0,109390.0,4.56623212]
[1756815936349,0.00272,109400.0,109390.0,4.68106394]
[1756815937443,0.06770394,109440.0,109430.0,0.1730257]
[1756815937751,0.19770394,109440.0,109430.0,1.83340193]
[1756815937948,0.23166394,109440.0,109430.0,1.83340193]
[1756815938546,0.23566394,109440.0,109430.0,1.464628]
[1756815938743,0.23566394,109440.0,109430.0,1.39902157]
[1756815939245,0.23566394,109440.0,109430.0,1.39906157]
[1756815939446,0.23566394,109440.0,109430.0,0.45057587]
[1756815939749,0.23566394,109440.0,109430.0,1.30757587]
[1756815940051,0.24266394,109440.0,109430.0,1.3741823]
[1756815941052,0.24266394,109440.0,109430.0,1.4655479]
[1756815941246,0.20870394,109440.0,109430.0,1.4655479]
[1756815941549,0.07870394,109440.0,109430.0,1.39994147]
[1756815941739,0.05489394,109440.0,109430.0,1.7697154]
[1756815941941,0.03108394,109440.0,109430.0,1.7697154]
[1756815942144,0.03108394,109440.0,109430.0,1.83532183]
[1756815943442,0.011,109440.0,109430.0,2.1397154]
[1756815943949,0.011,109440.0,109430.0,2.1197154]
[1756815944246,0.011,109440.0,109430.0,2.0797154]
[1756815944442,0.011,109440.0,109430.0,2.0197154]
[1756815944652,0.011,109440.0,109430.0,2.67742344]
[1756815945041,0.011,109440.0,109430.0,4.60862344]
[1756815945451,0.011,109440.0,109430.0,4.34292344]
[1756815946140,0.011,109440.0,109430.0,4.2609154]
[1756815946339,0.011,109440.0,109430.0,4.34275647]
[1756815946544,0.011,109440.0,109430.0,4.2609154]
[1756815946750,0.011,109440.0,109430.0,3.4039154]
[1756815947047,0.011,109440.0,109430.0,4.2605954]
[1756815947447,0.011,109440.0,109430.0,4.48598005]
[1756815947649,0.011,109440.0,109430.0,3.89082147]
[1756815947851,0.011,109440.0,109430.0,4.48598005]
[1756815948849,0.011,109440.0,109430.0,4.56776324]
[1756815949050,0.011,109440.0,109430.0,3.71108324]
[1756815949240,0.011,109440.0,109430.0,2.86592466]
[1756815949446,0.011,109440.0,109430.0,4.31760324]
[1756815953445,0.011,109440.0,109430.0,4.31740324]
[1756815954852,0.011,109440.0,109430.0,4.23562005]
[1756815955556,0.011,109440.0,109430.0,4.31739314]
[1756815955851,0.011,109440.0,109430.0,4.23562005]
[1756815956152,0.011,109440.0,109430.0,3.37930005]
[1756815956349,0.011,109440.0,109430.0,4.23546005]
[1756815956852,0.011,109440.0,109430.0,4.35029187]
[1756815957955,0.011,109440.0,109430.0,3.49413187]
[1756815958166,0.011,109440.0,109430.0,4.35021187]
[1756815958456,0.011,109440.0,109430.0,4.61591187]
[1756815959260,0.011,109440.0,109430.0,4.61587187]
[1756815959557,0.008,109440.0,109430.0,3.75883187]
[1756815959745,0.008,109440.0,109430.0,4.61487187]
[1756815960153,0.008,109440.0,109430.0,4.50004005]
[1756815960855,0.008,109440.0,109430.0,4.20238076]
[1756815961047,0.001,109440.0,109430.0,4.20138076]
[1756815961247,0.004,109440.0,109430.0,4.20238076]
[1756815961447,0.004,109440.0,109430.0,3.34642076]
[1756815961652,0.28796,109440.0,109430.0,3.34642076]
[1756815961858,0.28796,109440.0,109430.0,4.28422643]
[1756815962057,0.28796,109440.0,109430.0,3.42830643]
[1756815962259,0.28796,109440.0,109430.0,4.20234076]
[1756815962459,0.254,109440.0,109430.0,4.20234076]
[1756815962652,0.254,109440.0,109430.0,4.49992005]
[1756815962854,0.254,109440.0,109430.0,4.58180572]
[1756815963049,0.254,109440.0,109430.0,4.49992005]